bitfinex/quotes_BTCUSD_20251230
["timestamp","ask_amount","ask_price","bid_price","bid_amount"]
[1767105021180,0.01135499,88067.0,88057.0,0.01144]
[1767105021390,0.0113555,88063.0,88055.0,0.00030706]
[1767105021587,0.000307,88055.0,88037.0,0.06815303]
[1767105021811,0.000307,88055.0,88043.0,0.01144]
[1767105022012,0.01135615,88058.0,88044.0,0.01135795]
[1767105022212,0.06813768,88057.0,88054.0,0.00069309]
[1767105022423,0.02497938,88059.0,88031.0,0.0002]
[1767105022424,0.01135847,88040.0,88031.0,0.0002]
[1767105022703,0.01135847,88040.0,88013.0,0.01136195]
[1767105022704,0.01136105,88020.0,88003.0,0.01136324]
[1767105022875,0.01136131,88018.0,88012.0,0.00063605]
[1767105023122,0.01362336,88021.0,88012.0,0.00063605]
[1767105023253,0.01136066,88023.0,88012.0,0.00063605]
[1767105023455,0.23863876,88029.0,88002.0,0.0002]
[1767105023456,0.01136299,88005.0,88002.0,0.0002]
[1767105023656,0.01136299,88005.0,87995.0,0.0001965]
[1767105023657,0.01362336,88003.0,87997.0,0.00011156]
[1767105023955,0.01362336,87998.0,87997.0,0.00015212]
[1767105024160,0.02498725,87998.0,87987.0,0.0002]
[1767105024404,0.01136441,87994.0,87987.0,0.0002]
[1767105024608,0.01136492,87990.0,87987.0,0.0002]
[1767105024762,0.01144,87989.0,87977.0,0.0113666]
[1767105024963,0.01342336,87983.0,87978.0,0.01136647]
[1767105025232,0.02498764,87995.0,87978.0,0.01136647]
[1767105025423,0.01362336,87981.0,87977.0,6.9e-05]
[1767105025723,6.9e-05,87977.0,87968.0,0.01136777]
[1767105025895,6.9e-05,87977.0,87972.0,0.01136725]
[1767105026102,0.01136454,87993.0,87978.0,0.01136647]
[1767105026449,0.02498764,87995.0,87972.0,0.00010571]
[1767105026450,0.00048,87978.0,87972.0,0.00010571]
[1767105026578,0.01136479,87991.0,87976.0,0.01136673]
[1767105026780,0.01136479,87991.0,87975.0,0.01136686]
[1767105026781,0.00172251,87995.0,87980.0,0.01136621]
[1767105027015,0.01136311,88004.0,87989.0,0.01136505]
[1767105027176,0.01362336,87994.0,87985.0,0.0002]
[1767105027382,0.000549,87989.0,87973.0,0.01136712]
[1767105027658,0.01136505,87989.0,87973.0,0.01136712]
[1767105027840,0.01136505,87989.0,87985.0,0.00024105]
[1767105028040,0.56510373,87990.0,87985.0,5e-08]
[1767105028287,0.01362336,87994.0,87972.0,0.00010571]
[1767105028288,0.02280505,87989.0,87972.0,0.00010571]
[1767105028433,0.02280505,87989.0,87972.0,0.0683088]
[1767105028434,0.01144,87989.0,87972.0,0.0683088]
[1767105028640,0.01362336,87980.0,87972.0,0.00010571]
[1767105029345,0.09789,87979.0,87911.0,0.14767]
[1767105029583,0.09789,87979.0,87906.0,0.05608966]
[1767105029584,0.000105,87972.0,87957.0,0.01136919]
[1767105029781,0.000107,87979.0,87964.0,0.05684143]
[1767105029923,0.01148,87973.0,87968.0,0.01136777]
[1767105030163,0.01818792,87992.0,87977.0,0.0113666]
[1767105030327,0.04544,87998.0,87976.0,0.0568335]
[1767105030644,0.02284402,87997.0,87982.0,0.01136596]
[1767105030858,0.02284402,87997.0,87982.0,0.01147296]
[1767105031026,0.01136428,87995.0,87982.0,0.000107]
[1767105031231,0.01818792,87994.0,87974.0,0.01136699]
[1767105031431,0.01829516,87994.0,87980.0,0.01136621]
[1767105031776,0.01818816,87994.0,87985.0,0.01136557]
[1767105032000,0.01818816,87994.0,87978.0,0.05683197]
[1767105032132,0.01818816,87994.0,87978.0,0.0446344]
[1767105032338,0.00010724,87994.0,87986.0,0.01136544]
[1767105032728,0.01818792,87993.0,87985.0,0.01136557]
[1767105032899,0.000549,87986.0,87978.0,0.01136647]
[1767105033042,0.000549,87986.0,87983.0,0.01136583]
[1767105033246,0.01818792,88001.0,87988.0,0.01136518]
[1767105033443,0.01148,88000.0,87986.0,0.01136544]
[1767105033687,0.02284363,88000.0,87986.0,0.01136544]
[1767105033888,0.01136389,87998.0,87982.0,0.01136596]
[1767105034139,0.01136441,87994.0,87982.0,0.00010724]
[1767105034282,0.05682454,87991.0,87982.0,0.00010724]
[1767105034476,0.02284492,87990.0,87982.0,0.00010724]
[1767105034677,0.01136441,87994.0,87982.0,0.00010724]
[1767105034877,0.01148,87989.0,87982.0,0.00010724]
[1767105035512,0.00054007,88003.0,87994.0,0.01136441]
[1767105035837,0.01818792,88002.0,87994.0,0.01136441]
[1767105035994,0.00054007,88003.0,87998.0,0.01136389]
[1767105036339,0.04544,88019.0,87990.0,0.55373881]
[1767105036340,0.04544,88026.0,88017.0,0.01136144]
[1767105036537,0.04544,88026.0,88014.0,0.01116182]
[1767105036538,0.01148,88021.0,88014.0,0.01116182]
[1767105036838,0.01135976,88030.0,88011.0,0.01136221]
[1767105036839,0.0002,88024.0,88011.0,0.01136221]
[1767105037014,0.0002,88024.0,88004.0,0.0002]
[1767105037015,0.01818792,88022.0,88005.0,0.01136299]
[1767105037338,0.01818792,88022.0,88004.0,0.01156311]
[1767105037339,0.01136118,88019.0,88004.0,0.01156311]
[1767105037552,0.000349,88004.0,87996.0,0.01136415]
[1767105037736,0.000349,88004.0,87975.0,0.14767]
[1767105037737,0.01136402,87997.0,87979.0,0.05683142]
[1767105037884,0.01148,88007.0,87975.0,0.14767]
[1767105037885,0.01818792,87994.0,87983.0,0.0002]
[1767105038087,0.00055,87996.0,87987.0,0.01136531]
[1767105038342,0.01148,87999.0,87987.0,0.01136531]
[1767105038483,0.01148,87999.0,87983.0,0.0570287]
[1767105038484,0.01818792,87994.0,87984.0,0.0113657]
[1767105038690,0.01148,87999.0,87990.0,0.01136492]
[1767105039101,0.0002,88003.0,87993.0,0.01136454]
[1767105039299,0.0002,88003.0,87999.0,0.0002]
[1767105039518,0.01136466,87992.0,87983.0,0.0002]
[1767105039715,0.0113666,87977.0,87960.0,0.1590388]
[1767105039929,0.01136777,87968.0,87949.0,0.01137022]
[1767105040125,0.02955659,87961.0,87945.0,0.01137074]
[1767105040342,0.01136945,87955.0,87952.0,0.0002]
[1767105040546,0.02955659,87961.0,87943.0,0.011371]
[1767105040744,0.01136932,87956.0,87939.0,0.01137151]
[1767105040948,0.01136932,87956.0,87938.0,0.01147888]
[1767105040949,0.01136945,87955.0,87938.0,0.01147888]
[1767105041190,0.01148,87954.0,87941.0,0.01137126]
[1767105041391,0.01148,87954.0,87945.0,0.01137074]
[1767105041601,0.01148,87954.0,87944.0,0.01137087]
[1767105041810,0.0002,87972.0,87964.0,0.01136828]
[1767105042062,0.01148,87984.0,87973.0,0.01136712]
[1767105042217,0.04548,87998.0,87980.0,0.01136621]
[1767105042218,0.0002,87982.0,87980.0,0.01136621]
[1767105042390,0.11366373,87998.0,87980.0,0.01136621]
[1767105042391,0.01136363,88000.0,87980.0,0.01136621]
[1767105042593,0.01148,87999.0,87980.0,0.01136621]
[1767105042793,0.01136389,87998.0,87980.0,0.01136621]
[1767105043018,0.01148,87999.0,87982.0,0.01136596]
[1767105043223,0.01136389,87998.0,87983.0,0.01136583]
[1767105043540,0.02284376,87999.0,87984.0,0.0113657]
[1767105043693,0.01136402,87997.0,87984.0,0.0113657]
[1767105043877,0.01136402,87997.0,87983.0,0.01136583]
[1767105044082,0.01136428,87995.0,87982.0,0.00010724]
[1767105044301,0.01148,87999.0,87983.0,0.01136583]
[1767105044606,0.01049895,87998.0,87982.0,0.00010724]
[1767105044802,0.01148,87997.0,87986.0,0.05682687]
[1767105045000,0.01148,87997.0,87987.0,0.01136531]
[1767105045204,0.01148,87997.0,87981.0,0.01136609]
[1767105045404,0.01148,87997.0,87983.0,0.01136583]
[1767105045613,0.01136466,87992.0,87972.0,0.01136725]
[1767105045856,0.01136466,87992.0,87939.0,0.45485601]
[1767105045857,0.01818792,87979.0,87961.0,0.02284867]
[1767105046023,0.01136777,87968.0,87949.0,0.01137022]
[1767105046239,0.01818792,87979.0,87953.0,0.0113697]
[1767105046240,0.02284751,87970.0,87953.0,0.0113697]
[1767105046402,0.01148,87969.0,87958.0,0.01136906]
[1767105046609,0.01148,87969.0,87952.0,0.0002]
[1767105046610,0.011281,87969.0,87965.0,0.0568406]
[1767105046834,0.0002,87972.0,87969.0,0.01136764]
[1767105047060,0.01148,87979.0,87969.0,0.01136764]
[1767105047265,0.01148,87981.0,87971.0,0.01195649]
[1767105047420,0.01051986,87980.0,87970.0,0.01136751]
[1767105047620,0.01051986,87979.0,87971.0,0.01136738]
[1767105047867,0.01148,87981.0,87979.0,0.00035]
[1767105048271,0.01148,87981.0,87972.0,0.01136725]
[1767105048272,0.01053428,87980.0,87973.0,0.01136712]
[1767105048434,0.000199,87973.0,87966.0,0.01136802]
[1767105048636,0.000199,87973.0,87963.0,0.0002]
[1767105048637,0.01136738,87971.0,87963.0,0.0002]
[1767105048832,0.00055,87966.0,87963.0,0.0002]
[1767105049246,0.0568374,87971.0,87963.0,0.0002]
[1767105049443,0.02284712,87973.0,87949.0,0.02285022]
[1767105049444,0.01136854,87962.0,87949.0,0.01148]
[1767105049757,0.0295562,87964.0,87950.0,0.01137009]
[1767105049758,0.01148,87963.0,87950.0,0.01137009]
[1767105049956,0.01136867,87961.0,87943.0,0.011371]
[1767105050211,0.01136867,87961.0,87952.0,1e-06]
[1767105050212,0.01136945,87955.0,87952.0,1e-06]
[1767105050435,0.01137126,87941.0,87926.0,0.0113732]
[1767105050632,0.01137126,87941.0,87919.0,0.04548]
[1767105050633,0.0113719,87936.0,87921.0,0.01137384]
[1767105050779,0.02191535,87935.0,87928.0,0.00056612]
[1767105050982,0.02191548,87934.0,87928.0,0.00056612]
[1767105051183,0.01137203,87935.0,87928.0,0.00056612]
[1767105051184,0.01137255,87931.0,87928.0,0.00056612]
[1767105051533,0.05686406,87929.0,87928.0,1e-08]
[1767105051650,0.07888738,87929.0,87928.0,1e-08]
[1767105052290,0.01054332,87929.0,87928.0,1e-08]
[1767105052506,0.00999432,87929.0,87928.0,1e-08]
[1767105053285,0.00999432,87929.0,87908.0,0.01137552]
[1767105053286,0.0113732,87926.0,87908.0,0.01137552]
[1767105053515,0.0113732,87926.0,87909.0,0.01137539]
[1767105053516,0.01818792,87920.0,87909.0,0.01137539]
[1767105053681,0.01818792,87920.0,87908.0,0.00035779]
[1767105053866,0.01137475,87914.0,87908.0,0.00035779]
[1767105054070,0.01093,87913.0,87908.0,0.00035779]
[1767105054274,0.04548,87937.0,87925.0,0.01137332]
[1767105054456,0.001099,87925.0,87913.0,0.01137488]
[1767105054649,0.001099,87925.0,87908.0,0.00035779]
[1767105054650,0.01818792,87924.0,87916.0,0.01137449]
[1767105054851,0.01818792,87924.0,87923.0,0.00075715]
[1767105055073,0.01818792,87924.0,87910.0,0.01137527]
[1767105055249,0.01137371,87922.0,87909.0,0.01137539]
[1767105055486,0.01818792,87924.0,87908.0,0.00035779]
[1767105055487,0.02956137,87924.0,87908.0,0.00035779]
[1767105055822,0.01818792,87924.0,87913.0,0.01137488]
[1767105056161,0.01818792,87924.0,87910.0,0.06825156]
[1767105056386,0.01818792,87924.0,87909.0,0.01137539]
[1767105056387,0.000549,87913.0,87909.0,0.01137539]
[1767105056565,0.01818792,87924.0,87911.0,0.06825084]
[1767105056812,0.011371,87943.0,87922.0,0.05686858]
[1767105057013,0.011371,87943.0,87928.0,0.01137294]
[1767105057014,0.0568552,87943.0,87928.0,0.01137294]
[1767105057227,0.0568552,87943.0,87926.0,0.0113732]
[1767105057228,0.02289126,87941.0,87926.0,0.0113732]
[1767105057376,0.01137009,87950.0,87935.0,0.01137203]
[1767105057580,0.05684957,87954.0,87918.0,0.2274823]
[1767105057581,0.000549,87935.0,87932.0,0.01137242]
[1767105057746,0.01152,87940.0,87931.0,0.01137255]
[1767105057960,0.01152,87940.0,87932.0,0.01137242]
[1767105058240,0.01152,87940.0,87930.0,0.05686316]
[1767105058441,0.01152,87940.0,87930.0,0.01137268]
[1767105058591,0.01152,87940.0,87936.0,0.0113719]
[1767105058785,0.0002,87943.0,87941.0,0.0568563]
[1767105059020,0.01152,87953.0,87937.0,0.01137177]
[1767105059225,0.01818792,87943.0,87937.0,0.01137177]
[1767105059392,0.01152,87953.0,87945.0,0.01137074]
[1767105059595,0.01818792,87950.0,87945.0,0.00010712]
[1767105059793,0.01818792,87964.0,87952.0,0.01136983]
[1767105059993,0.000549,87952.0,87948.0,0.01137035]
[1767105060218,0.01065555,87961.0,87951.0,0.01136996]
[1767105060405,0.01152,87965.0,87953.0,0.0113697]
[1767105060616,0.01136919,87957.0,87945.0,0.00010712]
[1767105060895,0.01191173,87941.0,87923.0,0.01153218]
[1767105061094,0.01191173,87941.0,87923.0,0.0001586]
[1767105061095,0.01137242,87932.0,87923.0,0.0001586]
[1767105061251,0.01818792,87933.0,87923.0,0.0001586]
[1767105061609,0.0683772,87940.0,87923.0,0.0001586]
[1767105061610,0.01152,87940.0,87924.0,0.01137345]
[1767105061812,0.05739719,87941.0,87923.0,0.0001586]
[1767105061813,0.00054047,87941.0,87923.0,0.0001586]
[1767105062017,0.52900323,87980.0,87923.0,0.0001586]
[1767105062018,0.01152,87951.0,87941.0,0.00054]
[1767105062251,0.00010724,87951.0,87942.0,0.05685565]
[1767105062459,0.00010724,87951.0,87941.0,0.01191126]
[1767105062460,0.00010724,87951.0,87945.0,0.01137074]
[1767105062659,0.01818792,87950.0,87943.0,0.011371]
[1767105062873,0.00010724,87951.0,87948.0,0.01137035]
[1767105063086,0.00010724,87951.0,87949.0,0.05685112]
[1767105063313,0.0002,87962.0,87953.0,0.0113697]
[1767105063521,0.01136699,87974.0,87951.0,0.000107]
[1767105063522,0.01136634,87979.0,87961.0,0.01136867]
[1767105063718,0.01136725,87972.0,87956.0,0.06821528]
[1767105063930,0.0002,87972.0,87959.0,0.01136893]
[1767105064105,0.0002,87972.0,87952.0,0.0002]
[1767105064106,0.00055,87959.0,87952.0,0.0002]
[1767105064306,0.01818792,87964.0,87952.0,0.0002]
[1767105064509,0.01137009,87950.0,87933.0,0.01137229]
[1767105064752,0.06821885,87953.0,87930.0,0.01137268]
[1767105064753,0.01054295,87949.0,87937.0,0.01137177]
[1767105064969,0.0295584,87947.0,87934.0,0.02289216]
[1767105065168,0.01054295,87946.0,87934.0,0.01152]
[1767105065383,0.01054295,87945.0,87940.0,0.01137138]
[1767105065633,0.01054295,87944.0,87937.0,0.01137177]
[1767105065853,0.01019395,87943.0,87940.0,0.00010724]
[1767105066075,0.01019395,87943.0,87930.0,0.01137268]
[1767105066076,0.0113719,87936.0,87923.0,0.0001586]
[1767105066294,0.02289203,87935.0,87923.0,0.0001586]
[1767105066511,0.02956021,87933.0,87923.0,0.0001586]
[1767105066726,0.01152,87934.0,87931.0,0.01137255]
[1767105066937,0.00010722,87935.0,87933.0,0.000107]
[1767105067351,0.01147925,87935.0,87923.0,0.0001586]
[1767105067566,0.01818792,87930.0,87923.0,0.00069913]
[1767105067775,0.00010722,87935.0,87923.0,0.00069913]
[1767105068021,0.00010722,87935.0,87930.0,0.000107]
[1767105068441,0.00010722,87935.0,87912.0,0.01152]
[1767105068442,0.01137307,87927.0,87912.0,0.01152]
[1767105068681,0.01818792,87919.0,87908.0,0.01137552]
[1767105068874,0.01818792,87919.0,87905.0,0.01137591]
[1767105068875,0.01818792,87919.0,87904.0,0.01152]
[1767105069108,0.01818792,87919.0,87904.0,0.02289604]
[1767105069313,0.05686677,87925.0,87904.0,0.02289604]
[1767105069314,0.01137345,87924.0,87910.0,0.01137527]
[1767105069539,0.82502358,87930.0,87908.0,0.01137552]
[1767105069540,0.01036636,87925.0,87913.0,0.01137488]
[1767105069748,0.01036636,87925.0,87912.0,0.01137501]
[1767105069955,0.01137164,87938.0,87924.0,0.01137345]
[1767105070161,0.01152,87932.0,87920.0,0.01137397]
[1767105070366,0.01152,87932.0,87924.0,0.01137345]
[1767105070652,0.01147925,87935.0,87921.0,0.01137384]
[1767105070859,0.01818792,87933.0,87922.0,0.06824212]
[1767105071085,0.01818792,87933.0,87920.0,0.01137397]
[1767105071308,0.01818792,87933.0,87921.0,0.01137384]
[1767105071508,0.00010722,87935.0,87932.0,0.01137242]
[1767105071749,0.45465909,87979.0,87932.0,0.01137242]
[1767105071750,0.01748856,87946.0,87936.0,0.0113719]
[1767105071998,0.02289009,87950.0,87930.0,0.02289268]
[1767105071999,0.01818792,87949.0,87937.0,0.01137177]
[1767105072196,0.0002,87954.0,87948.0,0.01137035]
[1767105072362,0.0002,87954.0,87946.0,0.01137061]
[1767105072363,0.0002,87954.0,87947.0,0.01137048]
[1767105072555,0.0002,87954.0,87941.0,0.01137126]
[1767105073108,0.0002,87954.0,87943.0,0.011371]
[1767105073316,0.0002,87954.0,87942.0,0.01137113]
[1767105073528,0.0002,87954.0,87944.0,0.01137087]
[1767105073942,0.0002,87954.0,87951.0,0.01136996]
[1767105074544,0.0002,87954.0,87950.0,0.01137009]
[1767105074702,0.0002,87954.0,87951.0,0.01136996]
[1767105074907,0.0002,87954.0,87948.0,0.01137035]
[1767105075113,0.0002,87954.0,87947.0,0.06822242]
[1767105075114,0.01818792,87964.0,87959.0,0.01136893]
[1767105075315,0.01136505,87989.0,87969.0,0.01136764]
[1767105075552,0.01136505,87989.0,87970.0,0.05683755]
[1767105075750,0.01152,87990.0,87979.0,0.01136634]
[1767105075949,0.01136415,87996.0,87974.0,0.01136699]
[1767105075950,1e-08,87983.0,87982.0,0.0568298]
[1767105076154,0.04548,88008.0,87992.0,0.01136466]
[1767105076358,0.00030726,88003.0,88000.0,0.01136363]
[1767105076596,0.00030726,88003.0,87999.0,0.01136376]
[1767105076837,0.01152,88016.0,88000.0,0.05681818]
[1767105077063,0.0002,88013.0,88002.0,0.01136337]
[1767105077313,0.01818792,88008.0,88001.0,0.0113635]
[1767105077730,0.0002,88013.0,88005.0,0.01136299]
[1767105077944,0.01056947,88012.0,88002.0,0.02288337]
[1767105078170,0.00055,88002.0,87997.0,0.01136402]
[1767105078375,0.01156195,88013.0,88007.0,0.01136273]
[1767105078376,0.0002,88013.0,88007.0,0.01136273]
[1767105078586,0.0006489,88026.0,88020.0,0.01136105]
[1767105078800,0.0006489,88026.0,88018.0,0.01136131]
[1767105079003,0.01135898,88036.0,88014.0,0.01136182]
[1767105079004,0.01818792,88034.0,88014.0,0.01152]
[1767105079233,0.0113595,88032.0,88016.0,0.01136157]
[1767105079430,0.02212029,88033.0,88000.0,0.05681818]
[1767105079431,0.02954897,88020.0,88000.0,0.05681818]
[1767105079640,0.01818792,88020.0,88006.0,0.01136286]
[1767105079838,0.01818792,88020.0,87994.0,0.22728732]
[1767105079839,0.02965431,88034.0,88016.0,0.05680734]
[1767105080052,0.02965431,88034.0,88002.0,0.1568]
[1767105080053,0.01152,88028.0,88017.0,0.01136144]
[1767105080180,0.01829507,88034.0,88020.0,0.05680527]
[1767105080386,0.01152,88032.0,88020.0,0.05680527]
[1767105080813,0.01829507,88034.0,88027.0,0.01136015]
[1767105080814,0.00010715,88034.0,88027.0,0.01136015]
[1767105080971,0.00010715,88034.0,88032.0,0.00075]
[1767105081400,0.00010715,88034.0,88023.0,0.01136066]
[1767105081597,0.00010715,88034.0,88010.0,0.8136509]
[1767105081839,0.0113564,88056.0,88037.0,0.01135886]
[1767105082039,0.01135679,88053.0,88039.0,0.0113586]
[1767105082362,0.0002,88043.0,88037.0,0.01135886]
[1767105082604,0.01135408,88074.0,88056.0,0.0567817]
[1767105082816,0.0002,88063.0,88058.0,0.01135615]
[1767105083109,0.01152,88073.0,88063.0,0.0115555]
[1767105083315,0.01152,88073.0,88067.0,0.01135499]
[1767105083316,0.00010711,88073.0,88067.0,0.01135499]
[1767105083527,0.00010711,88073.0,88063.0,0.0115555]
[1767105083785,0.00010711,88073.0,88066.0,0.01135512]
[1767105083990,0.00010711,88073.0,88065.0,0.01135524]
[1767105084203,0.00010711,88073.0,88059.0,0.02287602]
[1767105084380,0.00010711,88073.0,88061.0,0.01135576]
[1767105084616,0.00010711,88073.0,88067.0,0.01135499]
[1767105084807,1.1e-07,88073.0,88067.0,0.00531215]
[1767105085029,0.01135615,88058.0,88040.0,0.01135847]
[1767105085239,0.01818792,88068.0,88011.0,0.18698792]
[1767105085240,0.01135989,88029.0,88011.0,0.1568]
[1767105085461,0.8136509,88053.0,88015.0,0.01152]
[1767105085462,0.01135963,88031.0,88015.0,0.01152]
[1767105085677,0.01135898,88036.0,88029.0,2e-06]
[1767105085900,0.02287834,88041.0,88025.0,0.0113604]
[1767105085901,0.01152,88041.0,88025.0,0.0113604]
[1767105086112,0.01818792,88036.0,88023.0,0.01156066]
[1767105086326,0.02287834,88041.0,88030.0,0.01135976]
[1767105086327,0.01152,88041.0,88030.0,0.01135976]
[1767105086543,0.01152,88050.0,88035.0,0.01135911]
[1767105086759,0.01135731,88049.0,88041.0,0.000552]
[1767105086975,0.01135847,88040.0,88022.0,0.01136079]
[1767105087190,0.01135963,88031.0,88016.0,0.01152]
[1767105087431,0.01136015,88027.0,88011.0,0.01136221]
[1767105087650,0.01818792,88036.0,87992.0,0.01136466]
[1767105087651,0.05681387,88007.0,87992.0,0.01136466]
[1767105087864,0.05681387,88007.0,87978.0,0.1568]
[1767105087865,0.00024,88011.0,88007.0,0.000309]
[1767105088097,0.01136027,88026.0,88008.0,0.0113626]
[1767105088319,0.01135924,88034.0,88017.0,0.01136144]
[1767105088533,0.0113604,88025.0,88006.0,0.01136286]
[1767105088745,0.02287963,88031.0,88016.0,0.01136157]
[1767105088955,0.01152,88032.0,88024.0,0.01136053]
[1767105089170,0.01135886,88037.0,88024.0,0.01136053]
[1767105089390,0.01135886,88037.0,88023.0,0.01136066]
[1767105089595,0.01135886,88037.0,88019.0,0.01136118]
[1767105089596,0.01155937,88033.0,88019.0,0.01136118]
[1767105089805,0.0002,88033.0,88019.0,0.01136118]
[1767105090030,0.0002,88033.0,88020.0,0.01136105]
[1767105090254,0.22713428,88054.0,88033.0,0.01135937]
[1767105090467,0.01135782,88045.0,88033.0,0.0002]
[1767105090693,0.0113586,88039.0,88025.0,0.0113604]
[1767105090861,0.01155808,88043.0,88027.0,0.01136015]
[1767105091060,0.01135821,88042.0,88028.0,0.01136002]
[1767105091277,0.01135834,88041.0,88026.0,0.01136027]
[1767105091468,0.00084744,88029.0,88026.0,0.01136027]
[1767105091686,0.01135834,88041.0,88029.0,0.000847]
[1767105091889,0.01172,88043.0,88023.0,0.01156066]
[1767105091890,0.01172,88043.0,88035.0,0.01135911]
[1767105092110,0.01135589,88060.0,88044.0,0.01135795]
[1767105092318,0.08874,88074.0,88037.0,0.01152]
[1767105092476,0.05677507,88067.0,88048.0,0.06814414]
[1767105092661,0.01135512,88066.0,88048.0,0.01135744]
[1767105092864,0.06813246,88064.0,88049.0,0.01135731]
[1767105093081,0.01135563,88062.0,88047.0,0.01152]
[1767105093301,0.0113546,88070.0,88047.0,0.01152]
[1767105093520,0.0002,88075.0,88061.0,0.01135576]
[1767105093744,0.00010707,88070.0,88061.0,0.02287576]
[1767105093953,0.0002,88075.0,88063.0,0.0113555]
[1767105094076,0.0002,88075.0,88070.0,0.000107]
[1767105094283,0.0002,88075.0,88070.0,0.00021407]
[1767105094502,0.0002,88075.0,88070.0,0.00010707]
[1767105094717,0.0004,88085.0,88073.0,0.01135421]
[1767105094984,0.0006,88085.0,88070.0,0.00010707]
[1767105095186,0.0006,88085.0,88070.0,0.01162707]
[1767105095394,0.06811012,88093.0,88085.0,0.000109]
[1767105095600,0.06811012,88093.0,88075.0,0.01135395]
[1767105095798,0.01135215,88089.0,88075.0,0.01135395]
[1767105095978,0.01135241,88087.0,88073.0,0.01135421]
[1767105096191,0.01135138,88095.0,88078.0,0.01135357]
[1767105096394,0.01135215,88089.0,88073.0,0.01135421]
[1767105096585,0.01135215,88089.0,88075.0,0.01135395]
[1767105096756,0.01135202,88090.0,88075.0,0.01135395]
[1767105097008,0.01135112,88097.0,88079.0,0.01135344]
[1767105097203,0.01135202,88090.0,88076.0,0.01135383]
[1767105097379,0.22705121,88086.0,88070.0,0.00010707]
[1767105097739,1.6273018,88080.0,88042.0,0.1568]
[1767105097952,0.01135512,88066.0,88055.0,0.0002]
[1767105098180,0.0113555,88063.0,88055.0,0.0002]
[1767105098442,0.01135473,88069.0,88055.0,0.0002]
[1767105098659,0.01152,88070.0,88057.0,0.01135628]
[1767105098893,0.01152,88070.0,88055.0,0.0002]
[1767105099061,0.01135473,88069.0,88055.0,0.01155653]
[1767105099265,0.07964786,88070.0,88057.0,0.01135628]
[1767105099266,0.01152,88070.0,88057.0,0.01135628]
[1767105099471,0.0228746,88070.0,88055.0,0.01155653]
[1767105099669,0.01135473,88069.0,88055.0,0.0002]
[1767105099868,0.01135486,88068.0,88055.0,0.01155653]
[1767105100189,0.00024,88055.0,88046.0,0.06814587]
[1767105100390,0.00024,88055.0,88051.0,0.01135705]
[1767105100620,0.00024,88055.0,88048.0,0.01135744]
[1767105100834,0.0113555,88063.0,88048.0,0.01135744]
[1767105100835,0.01135524,88065.0,88051.0,0.01135705]
[1767105100999,0.01135537,88064.0,88049.0,0.01135731]
[1767105101202,0.01152,88070.0,88058.0,0.01135615]
[1767105101409,0.01152,88070.0,88055.0,0.01135653]
[1767105101410,0.01051312,88069.0,88057.0,0.01135628]
[1767105101547,0.01155395,88075.0,88046.0,0.2271538]
[1767105101548,0.0002,88075.0,88060.0,0.01135589]
[1767105101749,0.0218675,88074.0,88060.0,0.01135589]
[1767105101953,0.01135408,88074.0,88061.0,0.01135576]
[1767105102309,0.02307395,88075.0,88061.0,0.01135576]
[1767105102310,0.01052456,88073.0,88061.0,0.01135576]
[1767105102539,0.01135486,88068.0,88053.0,0.01135679]
[1767105102780,0.00024,88061.0,88057.0,0.05678131]
[1767105102972,0.01172,88075.0,88069.0,0.01135473]
[1767105102973,0.0002,88075.0,88069.0,0.01135473]
[1767105103089,0.01152,88087.0,88075.0,0.00035]
[1767105103325,0.0002,88085.0,88076.0,0.02287383]
[1767105103605,0.0002,88085.0,88076.0,0.0796429]
[1767105103876,0.0114604,88080.0,88061.0,0.05677837]
[1767105104017,0.01162964,88079.0,88069.0,0.01152]
[1767105104219,0.0002,88069.0,88062.0,0.01135563]
[1767105104574,0.0002,88069.0,88056.0,0.0113564]
[1767105104575,0.0002,88069.0,88060.0,0.01152]
[1767105104775,0.01135421,88073.0,88060.0,0.02287589]
[1767105104921,0.01135434,88072.0,88060.0,0.01152]
[1767105105253,0.01056239,88071.0,88060.0,0.01152]
[1767105105451,0.01135421,88073.0,88060.0,0.01152]
[1767105105452,0.01056239,88070.0,88060.0,0.01152]
[1767105105653,0.01056239,88069.0,88060.0,0.01152]
[1767105105886,0.01056239,88068.0,88060.0,0.01152]
[1767105106086,0.01056239,88067.0,88060.0,0.01152]
[1767105106289,0.01135563,88062.0,88048.0,0.01135744]
[1767105106492,0.0567819,88057.0,88046.0,0.01152]
[1767105106654,0.01056239,88056.0,88046.0,0.01152]
[1767105106859,0.01001339,88055.0,88050.0,0.01135718]
[1767105107063,0.01135744,88048.0,88045.0,0.0002]
[1767105107264,0.01152,88063.0,88009.0,0.01818792]
[1767105107265,0.01135821,88042.0,88027.0,0.05680015]
[1767105107492,0.55398325,88050.0,88038.0,0.01135873]
[1767105107706,0.03020943,88077.0,88038.0,0.01135873]
[1767105107707,0.01135563,88062.0,88047.0,0.01135757]
[1767105107904,0.01155524,88065.0,88048.0,0.01135744]
[1767105107905,0.0113555,88063.0,88048.0,0.01135744]
[1767105108138,0.00055,88048.0,88046.0,0.01152]
[1767105108329,0.00055,88048.0,88038.0,0.02287873]
[1767105108534,0.01152,88057.0,88045.0,0.01135782]
[1767105108669,0.02287628,88057.0,88042.0,0.01135821]
[1767105108882,0.02287628,88057.0,88044.0,0.01135795]
[1767105109080,0.01135834,88041.0,88024.0,0.06816281]
[1767105109283,0.00055,88044.0,88030.0,0.01135976]
[1767105109508,0.01135821,88042.0,88024.0,0.01136053]
[1767105109712,0.02954497,88051.0,88035.0,0.01135911]
[1767105109951,0.01135666,88054.0,88036.0,0.06815367]
[1767105110159,0.5,88057.0,88047.0,0.01135757]
[1767105110532,0.5,88057.0,88040.0,0.01152]
[1767105110763,0.48222615,88057.0,88054.0,0.01135666]
[1767105111231,0.48058127,88057.0,88052.0,0.01135692]
[1767105111430,0.48058127,88057.0,88050.0,0.01152]
[1767105111638,0.00055,88052.0,88050.0,0.01152]
[1767105111906,0.01135757,88047.0,88031.0,0.01135963]
[1767105112038,0.55398325,88050.0,88037.0,0.01152]
[1767105112238,0.56534043,88050.0,88036.0,0.02287898]
[1767105112513,0.01135679,88053.0,88025.0,0.1639404]
[1767105112514,0.01135834,88041.0,88025.0,0.1639404]
[1767105112681,0.01190798,88036.0,88021.0,0.01136092]
[1767105112890,0.01190798,88036.0,88025.0,0.01152]
[1767105113092,0.0113586,88039.0,88025.0,0.0228804]
[1767105113360,0.62896374,88040.0,88025.0,0.0228804]
[1767105113361,0.01135924,88034.0,88025.0,0.01152]
[1767105113490,0.01136015,88027.0,88012.0,0.01136208]
[1767105113892,0.01136286,88006.0,87989.0,0.0681897]
[1767105114031,0.55398325,88010.0,88001.0,0.0113635]
[1767105114355,0.01136195,88013.0,87996.0,0.02288415]
[1767105114527,0.001099,88001.0,87993.0,0.00055737]
[1767105114707,0.01818792,88008.0,87995.0,0.05682141]